bitfinex/quotes_SOLUSD_20250915
["timestamp","ask_amount","ask_price","bid_price","bid_amount"]
[1757952763811,30.38308279,233.48,233.39,0.72]
[1757952764011,30.38308279,233.48,233.24,41.43672857]
[1757952764012,26.0,233.41,233.3,0.72]
[1757952764401,0.66,233.4,233.3,0.72]
[1757952765029,0.66,233.4,233.27,6.39667228]
[1757952765200,0.66,233.39,233.27,6.39667228]
[1757952765393,0.66,233.43,233.33,6.39667228]
[1757952765714,30.28365407,233.45,233.36,6.39667228]
[1757952766015,30.28365407,233.45,233.38,6.39667228]
[1757952766713,30.28365407,233.45,233.37,0.72]
[1757952766914,30.28365407,233.45,233.32,13.59559401]
[1757952766915,0.66,233.44,233.32,0.72]
[1757952767124,0.66,233.44,233.33,6.39667228]
[1757952767297,0.66,233.43,233.33,6.39667228]
[1757952767710,4.94412304,233.42,233.29,6.39667228]
[1757952767905,4.28412304,233.42,233.29,6.39667228]
[1757952768110,0.66,233.41,233.29,6.39667228]
[1757952768309,0.66,233.4,233.29,6.39667228]
[1757952768515,0.66,233.4,233.3,6.39667228]
[1757952768723,26.0,233.39,233.3,6.39667228]
[1757952769123,26.0,233.39,233.29,6.39667228]
[1757952769414,26.0,233.39,233.31,0.72]
[1757952769928,4.28485731,233.38,233.31,0.72]
[1757952770106,15.65700059,233.38,233.29,6.39667228]
[1757952770311,15.65700059,233.38,233.28,42.85667228]
[1757952770512,15.65700059,233.38,233.28,47.1432292]
[1757952771018,4.94485731,233.38,233.28,7.11667228]
[1757952771229,15.65700059,233.38,233.28,7.11667228]
[1757952771524,0.66,233.37,233.27,26.0]
[1757952771722,0.66,233.36,233.25,5.00713113]
[1757952771914,5.06,233.36,233.25,5.00713113]
[1757952772108,5.06,233.36,233.26,6.39667228]
[1757952772424,5.06,233.36,233.27,0.72]
[1757952772605,5.06,233.36,233.27,7.11667228]
[1757952772925,26.0,233.38,233.31,6.39667228]
[1757952773123,26.0,233.38,233.31,7.08667228]
[1757952773807,4.95467372,233.39,233.31,11.37275706]
[1757952774109,4.28467372,233.39,233.32,0.69]
[1757952774314,4.28467372,233.39,233.34,6.39667228]
[1757952774502,4.28467372,233.39,233.35,0.69]
[1757952776222,4.28449014,233.4,233.35,0.69]
[1757952777426,4.28449014,233.4,233.33,6.39667228]
[1757952777427,30.28420465,233.42,233.33,10.68244595]
[1757952777623,30.95420465,233.42,233.34,6.39667228]
[1757952777821,0.67,233.41,233.34,6.39667228]
[1757952778015,30.28420465,233.42,233.31,4.28596064]
[1757952778016,30.28420465,233.42,233.35,0.69]
[1757952778210,30.95420465,233.42,233.32,0.69]
[1757952778920,0.67,233.43,233.34,6.39667228]
[1757952779105,26.67,233.43,233.35,0.69]
[1757952779508,4.2841647,233.42,233.35,0.69]
[1757952781029,0.67,233.41,233.3,26.0]
[1757952781328,0.67,233.4,233.28,0.69]
[1757952781529,35.54,233.39,233.28,0.69]
[1757952781730,26.0,233.39,233.3,6.39667228]
[1757952781917,26.0,233.39,233.33,6.39667228]
[1757952782117,0.67,233.4,233.33,6.39667228]
[1757952782427,4.98467372,233.39,233.3,6.39667228]
[1757952783627,0.7,233.38,233.27,26.0]
[1757952783838,0.7,233.37,233.27,32.39667228]
[1757952784005,0.7,233.37,233.28,0.71]
[1757952784211,4.28522454,233.36,233.28,11.39327973]
[1757952784626,4.28522454,233.36,233.29,0.06]
[1757952785714,14.9982859,233.36,233.29,0.06]
[1757952786312,4.28522454,233.36,233.29,0.06]
[1757952786727,14.9982859,233.36,233.29,0.06]
[1757952786928,4.28522454,233.36,233.29,6.45667228]
[1757952787322,4.28522454,233.36,233.29,0.06]
[1757952787824,0.7,233.35,233.29,0.06]
[1757952788533,4.28559184,233.34,233.29,0.06]
[1757952788729,4.98559184,233.34,233.29,0.06]
[1757952788935,4.98559184,233.34,233.29,0.77]
[1757952789234,4.28533177,233.36,233.29,0.06]
[1757952789416,14.99839313,233.36,233.29,0.06]
[1757952789615,0.7,233.35,233.29,0.06]
[1757952790516,4.28559184,233.34,233.29,0.06]
[1757952790716,4.98559184,233.34,233.29,0.06]
[1757952792027,14.99957144,233.34,233.29,0.06]
[1757952792226,0.7,233.33,233.29,0.06]
[1757952792615,15.00085718,233.32,233.29,0.06]
[1757952792835,0.7,233.31,233.29,0.06]
[1757952793514,4.4,233.3,233.29,0.06]
[1757952793914,5.1,233.3,233.29,0.06]
[1757952794334,5.1,233.3,233.29,1e-08]
[1757952794729,9.38632661,233.3,233.29,1e-08]
[1757952795542,44.70632661,233.3,233.29,1e-08]
[1757952796418,44.70632661,233.3,233.26,1e-08]
[1757952796419,26.0,233.27,233.26,1e-08]
[1757952796829,30.98687786,233.27,233.26,1e-08]
[1757952797837,4.4,233.3,233.26,7.10667229]
[1757952798037,4.4,233.3,233.28,6.39667228]
[1757952798442,4.4,233.3,233.28,7.10667228]
[1757952798742,4.4,233.3,233.29,7.10667228]
[1757952799426,4.4,233.3,233.29,6.39667228]
[1757952799629,4.4,233.3,233.28,6.39667228]
[1757952799850,4.4,233.3,233.28,7.10667228]
[1757952800533,8.68638674,233.3,233.28,0.71]
[1757952800734,9.38638674,233.3,233.26,1e-08]
[1757952801121,20.10220328,233.3,233.26,1e-08]
[1757952802130,8.68638674,233.3,233.26,1e-08]
[1757952803316,0.7,233.29,233.26,1e-08]
[1757952803521,35.94,233.29,233.26,1e-08]
[1757952804460,39.59559401,233.27,233.26,1e-08]
[1757952804966,75.55559401,233.27,233.26,1e-08]
[1757952805323,79.84247187,233.27,233.26,1e-08]
[1757952806561,39.59559401,233.24,233.23,1e-08]
[1757952807061,40.29559401,233.24,233.23,1e-08]
[1757952807249,17.88302326,233.24,233.23,1e-08]
[1757952807566,39.54742925,233.24,233.23,1e-08]
[1757952808055,4.28742925,233.24,233.23,1e-08]
[1757952808228,39.52742925,233.24,233.23,1e-08]
[1757952808624,4.28742925,233.24,233.23,1e-08]
[1757952809263,195.54,233.26,233.23,1e-08]
[1757952809761,35.24,233.25,233.23,1e-08]
[1757952810464,199.8070648,233.26,233.23,1e-08]
[1757952810648,164.5870648,233.26,233.23,1e-08]
[1757952810828,35.2,233.25,233.23,1e-08]
[1757952811153,175.30471891,233.26,233.23,1e-08]
[1757952811351,210.50471891,233.26,233.23,1e-08]
[1757952812046,35.18,233.25,233.23,1e-08]
[1757952812250,169.48,233.25,233.23,1e-08]
[1757952813240,134.3,233.25,233.23,1e-08]
[1757952813443,4.28742925,233.24,233.23,1e-08]
[1757952814164,4.28742925,233.24,233.23,0.71000001]
[1757952814728,134.3,233.32,233.23,0.71000001]
[1757952814928,35.12,233.29,233.23,0.71000001]
[1757952815150,35.12,233.29,233.23,5.03779885]
[1757952815348,39.40651349,233.29,233.24,0.71]
[1757952815541,39.40651349,233.29,233.25,0.71]
[1757952816844,8.71633199,233.3,233.26,0.71]
[1757952817047,8.71633199,233.3,233.27,0.71]
[1757952817248,8.71633199,233.3,233.28,0.71]
[1757952817249,4.43,233.3,233.28,0.71]
[1757952817438,4.43,233.3,233.29,0.71]
[1757952819455,4.43,233.3,233.29,5.03779884]
[1757952819848,4.43,233.3,233.29,9.32430919]
[1757952820432,0.03,233.3,233.29,9.32430919]
[1757952822570,0.03,233.3,233.29,0.71]
[1757952822866,0.03,233.3,233.28,4.32779884]
[1757952823064,0.71,233.29,233.23,0.71000001]
[1757952823444,4.2866941,233.28,233.23,0.71000001]
[1757952823765,0.71,233.27,233.23,1e-08]
[1757952824742,0.71,233.26,233.23,1e-08]
[1757952825762,4.99724544,233.25,233.23,1e-08]
[1757952826165,5.11,233.24,233.23,1e-08]
[1757952826944,4.4,233.24,233.23,1e-08]
[1757952828040,8.68742925,233.24,233.23,1e-08]
[1757952828977,4.4,233.24,233.23,1e-08]
[1757952829662,9.39742925,233.24,233.23,1e-08]
[1757952829880,4.4,233.24,233.23,1e-08]
[1757952830380,4.4,233.24,233.23,0.71000001]
[1757952830967,4.4,233.24,233.23,5.03779885]
[1757952832668,4.4,233.24,233.23,9.32541193]
[1757952833370,4.4,233.24,233.23,1e-08]
[1757952834474,9.36742925,233.24,233.23,1e-08]
[1757952834659,8.68742925,233.24,233.23,1e-08]
[1757952835173,9.36742925,233.24,233.23,1e-08]
[1757952836969,4.4,233.24,233.23,1e-08]
[1757952837351,2.82,233.24,233.23,0.72000001]
[1757952837576,2.82,233.24,233.23,22.9711917]
[1757952837878,2.82,233.24,233.23,16.09481702]
[1757952838057,0.03,233.3,233.26,26.0]
[1757952838459,0.03,233.3,233.29,1.779223]
[1757952838774,0.03,233.3,233.29,6.06573335]
[1757952839768,0.03,233.3,233.29,8.61115182]
[1757952841054,0.03,233.3,233.25,26.0]
[1757952841261,0.03,233.3,233.29,4.32464147]
[1757952842070,0.03,233.3,233.25,75.80535905]
[1757952842255,0.03,233.3,233.29,4.32464147]
[1757952845195,0.03,233.3,233.29,8.61115182]
[1757952847463,0.03,233.3,233.29,38.00853491]
[1757952847886,0.03,233.3,233.29,34.61115182]
[1757952848583,0.03,233.35,233.34,4.32464147]
[1757952848765,0.03,233.35,233.34,39.00464147]
[1757952849388,0.03,233.35,233.34,43.29023331]
[1757952850698,0.03,233.35,233.34,56.88582732]
[1757952850872,0.03,233.35,233.34,57.3143865]
[1757952851974,0.72,233.47,233.38,13.59559401]
[1757952852171,0.72,233.47,233.46,4.32464147]
[1757952852683,0.72,233.5,233.46,4.32464147]
[1757952852892,0.72,233.49,233.44,34.66]
[1757952853279,0.72,233.48,233.44,34.66]
[1757952853470,0.72,233.48,233.45,4.28357249]
[1757952853672,0.72,233.5,233.45,4.28357249]
[1757952854293,0.72,233.5,233.49,4.32464147]
[1757952857578,0.72,233.5,233.48,38.98464147]
[1757952857780,0.72,233.49,233.48,38.98464147]
[1757952858300,0.72,233.49,233.48,34.66]
[1757952858499,0.72,233.49,233.48,38.98464147]
[1757952858702,0.72,233.49,233.35,10.71335927]
[1757952858887,0.72,233.48,233.41,4.32464147]
[1757952859084,0.72,233.49,233.4,34.64]
[1757952859299,0.75,233.5,233.48,4.32464147]
[1757952859483,0.03,233.5,233.44,26.0]
[1757952859800,0.03,233.5,233.49,1.77649717]
[1757952860178,0.03,233.5,233.45,50.47250373]
[1757952860481,0.03,233.5,233.49,1.77649717]
[1757952860889,0.03,233.5,233.47,13.59559401]
[1757952861076,0.03,233.5,233.49,1.77649717]
[1757952861910,0.03,233.5,233.49,2.77548203]
[1757952862790,0.03,233.5,233.48,4.2829408]
[1757952863098,0.03,233.5,233.49,2.77548203]
[1757952863901,0.03,233.5,233.49,7.05832069]
[1757952864980,0.03,233.5,233.49,20.6539147]
[1757952865281,0.03,233.5,233.49,56.1339147]
[1757952865488,0.03,233.5,233.49,38.25548203]
[1757952865694,0.03,233.5,233.49,42.53832069]
[1757952866696,0.03,233.5,233.49,38.25548203]
[1757952866898,0.03,233.5,233.49,35.48]
[1757952867201,0.03,233.5,233.49,38.25548203]
[1757952867382,0.03,233.5,233.49,28.77548203]
[1757952867577,0.03,233.5,233.49,26.0]
[1757952867804,0.03,233.5,233.48,2.77548203]
[1757952868194,0.03,233.5,233.49,2.77548203]
[1757952868999,0.75,233.5,233.49,2.77548203]
[1757952869194,0.75,233.5,233.48,2.77548203]
[1757952869523,0.72,233.49,233.46,38.21548203]
[1757952870114,0.72,233.49,233.47,2.77548203]
[1757952870720,0.72,233.49,233.46,35.44]
[1757952870897,0.72,233.49,233.47,2.77548203]
[1757952871221,0.72,233.49,233.46,39.72338501]
[1757952871422,0.72,233.48,233.46,2.77548203]
[1757952871712,0.03,233.5,233.47,51.73107604]
[1757952871915,0.03,233.5,233.49,2.77548203]
[1757952872224,0.03,233.5,233.49,7.05832069]
[1757952873808,0.03,233.5,233.49,20.6539147]
[1757952875421,0.03,233.5,233.49,17.87843267]
[1757952875611,0.03,233.5,233.49,20.6539147]
[1757952876207,0.03,233.5,233.49,46.6539147]
[1757952877614,0.03,233.5,233.49,81.8539147]
[1757952878420,0.03,233.5,233.49,59.05768059]
[1757952878616,0.03,233.53,233.52,45.14655807]
[1757952878927,36.89581769,233.7,233.52,45.14655807]
[1757952878928,0.69,233.64,233.52,80.32655807]
[1757952879104,0.69,233.64,233.63,2.77548203]
[1757952879804,0.69,233.64,233.62,2.77548203]
[1757952880003,0.69,233.63,233.62,2.77548203]
[1757952881020,4.28007303,233.65,233.62,2.77548203]
[1757952881326,0.69,233.64,233.62,2.77548203]
[1757952881506,0.69,233.64,233.63,2.77548203]
[1757952881826,0.69,233.64,233.61,2.77548203]
[1757952882019,0.69,233.63,233.61,2.77548203]
[1757952882403,0.69,233.63,233.62,2.77548203]
[1757952882706,0.69,233.66,233.62,2.77548203]
[1757952882902,2.23859789,233.76,233.6,4.28075988]
[1757952882903,0.69,233.65,233.6,4.28075988]
[1757952883123,0.69,233.65,233.64,2.77548203]
[1757952883436,0.69,233.65,233.63,2.77548203]
[1757952883798,0.69,233.64,233.63,2.77548203]
[1757952884014,4.97009716,233.64,233.62,2.77548203]
[1757952884205,0.69,233.63,233.62,2.77548203]
[1757952885306,4.96939775,233.68,233.62,2.77548203]
[1757952885608,0.69,233.67,233.65,2.77548203]
[1757952885814,4.96983444,233.66,233.64,2.77548203]
[1757952886017,4.96983444,233.66,233.63,2.77548203]
[1757952886219,0.69,233.65,233.6,35.06]
[1757952886409,0.69,233.64,233.61,2.77548203]
[1757952886610,0.69,233.63,233.62,2.77548203]
[1757952886829,4.27983444,233.66,233.62,2.77548203]
[1757952887031,4.27983444,233.66,233.6,35.02]
[1757952887032,0.69,233.65,233.63,2.77548203]
[1757952887218,4.27983444,233.66,233.63,2.77548203]
[1757952887420,0.69,233.64,233.63,2.77548203]
[1757952887826,0.69,233.64,233.6,35.02]
[1757952888029,4.28008902,233.64,233.63,2.77548203]
[1757952888534,4.27917326,233.69,233.63,2.77548203]
[1757952888714,21.38289764,233.84,233.6,39.30075418]
[1757952888715,0.69,233.68,233.61,13.59559401]
[1757952888915,14.97454327,233.73,233.67,2.77548203]
[1757952889111,14.97454327,233.73,233.61,13.59559401]
[1757952889436,26.0,233.7,233.59,34.96]
[1757952889619,26.0,233.7,233.6,2.77548203]
[1757952889819,0.69,233.69,233.56,26.0]
[1757952890125,0.69,233.68,233.58,2.77548203]
[1757952890317,0.69,233.67,233.59,2.77548203]
[1757952890515,0.69,233.66,233.59,2.77548203]
[1757952890716,0.69,233.65,233.59,2.77548203]
[1757952890915,0.69,233.64,233.59,2.77548203]
[1757952891132,0.69,233.63,233.48,13.59559401]
[1757952891340,0.69,233.62,233.54,2.77548203]
[1757952891542,0.69,233.61,233.54,2.77548203]
[1757952891746,0.69,233.6,233.5,39.59559401]
[1757952892042,4.28118845,233.58,233.54,2.77548203]
[1757952892220,0.69,233.57,233.54,2.77548203]
[1757952892414,0.69,233.57,233.51,34.92]
[1757952892415,0.69,233.6,233.56,2.77548203]
[1757952892614,0.69,233.6,233.58,2.77548203]
[1757952892822,10.7009335,233.63,233.56,2.77548203]
[1757952893139,0.69,233.59,233.56,2.77548203]
[1757952893328,0.69,233.58,233.55,2.77548203]
[1757952893518,10.7009335,233.63,233.55,2.77548203]
[1757952893519,0.68,233.57,233.55,2.77548203]
[1757952894023,0.68,233.57,233.56,2.77548203]
[1757952894222,10.69791313,233.7,233.56,2.77548203]
[1757952894431,10.69791313,233.7,233.65,2.77548203]
[1757952894640,0.68,233.69,233.59,15.14]
[1757952894960,0.68,233.68,233.65,2.77548203]
[1757952895129,10.69791313,233.7,233.65,2.77548203]
[1757952895130,0.68,233.67,233.65,2.77548203]
[1757952895329,0.68,233.69,233.66,2.77548203]
[1757952895532,4.95880706,233.71,233.68,2.77548203]
[1757952895833,0.68,233.7,233.68,2.77548203]
[1757952896154,0.68,233.69,233.67,2.77548203]
[1757952896333,4.9593513,233.69,233.67,2.77548203]
[1757952896525,0.68,233.69,233.68,2.77548203]
[1757952897744,4.95917326,233.69,233.67,2.77548203]
[1757952897947,0.03,233.68,233.67,2.77548203]
[1757952899526,0.03,233.68,233.64,26.0]
[1757952899833,0.03,233.68,233.67,2.77548203]
[1757952901535,0.71,233.68,233.61,13.59559401]
[1757952901734,0.68,233.67,233.65,2.77548203]
[1757952901957,0.03,233.68,233.66,2.77548203]
[1757952902133,0.03,233.68,233.67,2.77548203]
[1757952902531,0.69,233.68,233.66,2.77548203]
[1757952902746,0.66,233.67,233.66,2.77548203]
[1757952902953,0.66,233.67,233.65,2.77548203]
[1757952903450,0.66,233.66,233.53,4.28210508]
[1757952903656,0.66,233.65,233.57,2.77548203]
[1757952903948,26.03,233.68,233.52,34.74]
[1757952903949,0.66,233.64,233.59,2.77548203]
[1757952904152,26.0,233.66,233.6,2.77548203]
[1757952904455,0.66,233.63,233.6,2.77548203]
[1757952905253,4.94032327,233.63,233.6,2.77548203]
[1757952905438,0.66,233.63,233.6,2.77548203]
[1757952905637,4.96946724,233.68,233.62,2.77548203]
[1757952905854,0.69,233.68,233.64,2.77548203]
[1757952906057,0.66,233.67,233.59,4.28083911]
[1757952906354,0.66,233.67,233.64,2.77548203]
[1757952906551,0.66,233.66,233.59,4.28083911]
[1757952906756,0.03,233.68,233.59,4.28083911]
[1757952906757,0.69,233.68,233.64,2.77548203]
[1757952906946,4.27972267,233.66,233.64,2.77548203]
[1757952907453,0.03,233.68,233.64,2.77548203]
[1757952907659,0.69,233.68,233.64,2.77548203]
[1757952907850,0.66,233.67,233.64,2.77548203]
[1757952908249,4.30942264,233.68,233.64,2.77548203]
[1757952908449,0.66,233.67,233.63,2.77548203]
[1757952908647,0.66,233.66,233.63,2.77548203]
[1757952909360,0.03,233.68,233.65,2.77548203]
[1757952909659,0.03,233.68,233.67,2.77548203]
[1757952910956,0.03,233.68,233.67,16.37107604]
[1757952911460,0.03,233.68,233.67,20.65061556]
[1757952912349,0.03,233.68,233.67,16.37107604]
[1757952912549,0.03,233.68,233.67,20.65061556]
[1757952914446,0.03,233.68,233.67,17.87513353]
[1757952914649,0.03,233.68,233.67,20.65061556]
[1757952915654,0.03,233.68,233.67,21.07856951]
[1757952916361,0.66,233.78,233.71,39.59559401]
[1757952916543,0.1,233.79,233.77,2.77548203]
[1757952916747,0.1,233.79,233.78,2.77548203]
[1757952917242,0.1,233.79,233.78,16.37107604]
[1757952917634,0.1,233.79,233.78,20.64860191]
[1757952917961,0.1,233.79,233.78,21.07635449]
[1757952918561,0.1,233.79,233.78,14.02334659]
[1757952918740,0.76,233.79,233.78,28.77548203]
[1757952918941,0.76,233.79,233.78,2.77548203]
[1757952919239,0.1,233.79,233.78,2.77548203]
[1757952919641,0.1,233.79,233.78,7.0530079]
[1757952919837,0.1,233.79,233.78,20.64860191]
[1757952922563,0.76,233.79,233.75,26.0]
[1757952922742,0.66,233.78,233.76,34.58]
[1757952922941,0.66,233.78,233.77,2.77548203]
[1757952923765,0.66,233.78,233.77,1.77211539]
[1757952923943,0.66,233.78,233.77,27.77211539]
[1757952924148,0.66,233.78,233.77,62.35211539]
[1757952924569,0.66,233.78,233.77,66.62982424]
[1757952924870,0.66,233.78,233.77,62.35211539]
[1757952925074,0.1,233.79,233.77,66.62982424]
[1757952925376,0.76,233.79,233.78,1.77211539]
[1757952925764,0.1,233.79,233.78,6.04964126]
[1757952926267,0.1,233.79,233.78,40.62964126]
[1757952926651,0.1,233.79,233.78,36.35211539]
[1757952926967,0.1,233.79,233.78,40.62964126]
[1757952928365,0.1,233.79,233.78,54.65298785]
[1757952930277,0.1,233.79,233.78,34.58]
[1757952930481,0.1,233.79,233.78,40.62964126]
[1757952930975,0.1,233.79,233.78,54.65298785]
[1757952931151,0.1,233.79,233.78,67.50343011]
[1757952931887,0.1,233.79,233.78,93.50343011]
[1757952932068,0.1,233.79,233.78,93.07567753]
[1757952933075,0.1,233.79,233.78,67.07567753]
[1757952933276,0.1,233.79,233.78,67.50343011]
[1757952933763,0.66,233.85,233.81,26.0]
[1757952933963,0.66,233.85,233.84,6.04854371]
[1757952934180,0.66,233.85,233.84,40.62854371]
[1757952937262,0.7,233.87,233.84,40.62854371]
[1757952937475,0.1,233.89,233.86,1.77211539]
[1757952937659,0.1,233.89,233.88,1.77211539]
[1757952938061,0.8,233.89,233.88,1.77211539]
[1757952938677,0.8,233.89,233.88,6.04781232]
[1757952939189,0.1,233.89,233.88,19.64340633]
[1757952939388,0.1,233.89,233.88,20.07097602]
[1757952939551,0.1,233.89,233.88,21.35613836]
[1757952939752,0.1,233.89,233.88,47.35613836]
[1757952940013,0.8,233.89,233.88,29.48484742]
[1757952940158,0.8,233.89,233.88,33.76054435]
[1757952940353,0.1,233.89,233.88,1.71273203]
[1757952940691,0.8,233.89,233.84,26.0]
[1757952940978,0.7,233.88,233.85,34.56]
[1757952941169,0.7,233.87,233.85,34.56]
[1757952941480,0.7,233.86,233.85,36.27317216]
[1757952941776,0.7,233.86,233.83,34.56]
[1757952941985,4.3755319,233.89,233.83,34.56]
[1757952942152,0.7,233.85,233.82,1.77211539]
[1757952942353,0.7,233.85,233.62,34.64598162]
[1757952942354,4.27642832,233.84,233.79,1.77211539]
[1757952942568,0.7,233.83,233.79,49.18365864]
[1757952942760,0.7,233.82,233.8,1.77211539]
[1757952942966,14.96515921,233.88,233.81,1.77211539]
[1757952943476,0.7,233.87,233.8,1.77211539]
[1757952943787,0.7,233.86,233.8,1.77211539]
[1757952943993,4.27642832,233.84,233.8,1.77211539]
[1757952944174,0.7,233.83,233.8,1.77211539]
[1757952944374,0.7,233.82,233.8,1.77211539]
[1757952944578,0.7,233.81,233.8,1.77211539]
[1757952944976,0.7,233.81,233.79,34.56]
[1757952945283,0.7,233.8,233.74,4.27642832]
[1757952945483,10.68991512,233.87,233.66,4.27966761]
[1757952945484,0.7,233.79,233.66,4.27966761]
[1757952945666,0.7,233.79,233.68,34.62]
[1757952945867,0.7,233.78,233.68,34.62]
[1757952946165,14.97262148,233.76,233.68,34.62]
[1757952946364,0.7,233.75,233.69,1.77211539]
[1757952946566,0.7,233.75,233.68,34.62]
[1757952946567,0.7,233.74,233.68,0.06]
[1757952947067,0.7,233.74,233.7,1.77211539]
[1757952947382,0.7,233.73,233.7,1.77211539]
[1757952947589,4.27789185,233.76,233.7,1.77211539]
[1757952947782,0.7,233.75,233.69,1.77211539]
[1757952947978,0.7,233.74,233.69,1.77211539]
[1757952948187,4.97844093,233.73,233.69,1.77211539]
[1757952948494,0.7,233.72,233.69,1.77211539]
[1757952948692,0.7,233.71,233.68,0.06]
[1757952948998,0.7,233.71,233.7,1.77211539]
[1757952950985,0.7,233.79,233.7,41.32109602]
[1757952951283,0.7,233.79,233.78,1.77211539]
[1757952952094,0.7,233.83,233.78,6.04961672]
[1757952952292,0.7,233.83,233.78,4.27750133]
[1757952952496,0.7,233.87,233.79,0.69]
[1757952952701,0.7,233.87,233.84,1.77211539]
[1757952952994,0.7,233.86,233.85,1.77211539]
[1757952953190,0.1,233.89,233.85,1.77211539]
[1757952953385,0.68,233.88,233.79,0.69]
[1757952953598,0.68,233.88,233.86,1.77211539]
[1757952953796,0.1,233.89,233.87,1.77211539]
[1757952953987,0.1,233.89,233.88,6.04781232]
[1757952955599,0.1,233.89,233.88,6.76781232]
[1757952955776,0.1,233.89,233.88,9.29786881]
[1757952956310,0.81,233.89,233.84,34.56]
[1757952956508,0.13,233.89,233.88,17.89776589]
[1757952956880,0.13,233.89,233.88,30.30217188]
[1757952957184,0.13,233.89,233.88,64.86217188]
[1757952957900,0.13,233.89,233.88,65.58217188]
[1757952959101,0.13,233.89,233.88,69.85786881]
[1757952959295,0.13,233.89,233.88,69.13786881]
[1757952959983,0.13,233.89,233.88,38.86217188]
[1757952960212,0.81,233.89,233.87,34.56]
[1757952960382,0.13,233.89,233.88,4.30217188]
[1757952960704,0.13,233.89,233.87,34.56]
[1757952960914,0.13,233.89,233.88,4.30217188]
[1757952961091,0.13,233.89,233.88,8.57786881]
[1757952962313,0.13,233.89,233.88,4.30217188]
[1757952962314,0.82,233.89,233.88,4.30217188]
[1757952962529,0.82,233.89,233.87,38.86217188]
[1757952963107,0.82,233.89,233.88,4.30217188]
[1757952963821,0.13,233.89,233.88,4.30217188]
[1757952964187,0.13,233.89,233.88,0.7]
[1757952964380,5.09551413,233.89,233.81,4.2743661]
[1757952964584,0.69,233.88,233.81,4.2743661]
[1757952964789,0.69,233.87,233.81,4.2743661]
[1757952965020,0.69,233.86,233.81,3.5543661]
[1757952965301,15.65685909,233.85,233.72,8.65855241]
[1757952965487,0.69,233.84,233.73,0.7]
[1757952965687,3.1899686,233.83,233.78,4.30217188]
[1757952965887,3.8799686,233.82,233.78,4.30217188]
[1757952966088,4.27624545,233.85,233.78,4.30217188]
[1757952966302,0.69,233.81,233.78,4.30217188]
[1757952967296,0.69,233.81,233.77,4.27766283]
[1757952967297,4.27708669,233.81,233.77,4.30217188]
[1757952967501,0.69,233.8,233.73,0.7]
[1757952968015,0.69,233.85,233.77,26.0]
[1757952968213,4.27577301,233.88,233.78,35.42]
[1757952968402,0.69,233.86,233.78,35.42]
[1757952968802,0.69,233.86,233.79,4.27734291]
[1757952970105,4.96610925,233.86,233.79,4.27734291]
[1757952970317,0.69,233.86,233.79,4.27734291]
[1757952970625,0.13,233.89,233.8,0.7]
[1757952971605,0.13,233.89,233.82,4.30217188]
[1757952971814,0.13,233.89,233.83,35.4]
[1757952972298,0.13,233.89,233.84,15.66749913]
[1757952972927,0.13,233.89,233.85,0.7]
[1757952973123,0.13,233.89,233.86,0.7]
[1757952973307,0.13,233.89,233.87,0.7]
[1757952974331,0.13,233.89,233.86,4.2760626]
[1757952974825,0.13,233.89,233.86,15.6662191]
[1757952975526,0.13,233.89,233.87,34.68]
[1757952976428,0.13,233.89,233.88,4.27569693]
[1757952977511,0.13,233.89,233.87,34.74]
[1757952977711,0.82,233.89,233.87,34.74]
[1757952978208,0.13,233.89,233.87,39.01585892]